[Event "Championnat du monde jeunes U12F"]
[Date "2024.11.26"]
[White "Petrusic, Dusica"]
[Black "Ivanova, Gabriela"]
[WhiteElo "1498"]
[BlackElo "1680"]
[Round "11.41"]
[Result "1/2-1/2"]
[TimeControl "5400+30"]

1. e4 {[%clk 1:30:57]} 1... c6 {[%clk 1:30:33]} 2. d4 {[%clk 1:31:20]} 2... d5
{[%clk 1:30:37]} 3. Nd2 {[%clk 1:31:33]} 3... dxe4 {[%clk 1:30:01]} 4. Nxe4
{[%clk 1:31:52]} 4... Bf5 {[%clk 1:29:22]} 5. Ng3 {[%clk 1:32:12]} 5... Bg6
{[%clk 1:29:13]} 6. f4 {[%clk 1:32:09]} 6... h6 {[%clk 1:29:04]} 7. f5 {[%clk
1:32:14]} 7... Bh7 {[%clk 1:29:25]} 8. Nf3 {[%clk 1:32:04]} 8... Nd7 {[%clk
1:29:17]} 9. Bd3 {[%clk 1:31:09]} 9... Ngf6 {[%clk 1:27:45]} 10. O-O {[%clk
1:31:10]} 10... Qb6 {[%clk 1:23:16]} 11. Kh1 {[%clk 1:29:02]} 11... O-O-O {[%clk
0:58:54]} 12. Re1 {[%clk 1:16:59]} 12... Nd5 {[%clk 0:45:27]} 13. c3 {[%clk
1:12:00]} 13... N7f6 {[%clk 0:22:01]} 14. Ne5 {[%clk 1:07:18]} 14... Bg8 {[%clk
0:20:33]} 15. a4 {[%clk 1:00:20]} 15... Qc7 {[%clk 0:13:35]} 16. Qb3 {[%clk
0:44:30]} 16... e6 {[%clk 0:07:16]} 17. fxe6 {[%clk 0:42:42]} 17... fxe6 {[%clk
0:07:17]} 18. Ng6 {[%clk 0:41:50]} 18... Rh7 {[%clk 0:06:33]} 19. Nxf8 {[%clk
0:41:52]} 19... Rxf8 {[%clk 0:06:33]} 20. Bxh7 {[%clk 0:42:05]} 20... Nxh7
{[%clk 0:06:12]} 21. c4 {[%clk 0:33:52]} 21... Ndf6 {[%clk 0:03:01]} 22. Be3
{[%clk 0:25:36]} 22... Ng4 {[%clk 0:02:30]} 23. Rf1 {[%clk 0:23:13]} 23... h5
{[%clk 0:01:39]} 24. Rxf8+ {[%clk 0:15:13]} 24... Nxf8 {[%clk 0:01:55]} 25. Bg5
{[%clk 0:09:25]} 25... Nh7 {[%clk 0:00:57]} 26. Bh4 {[%clk 0:07:49]} 26... g5
{[%clk 0:00:47]} 27. Bxg5 {[%clk 0:07:06]} 27... Nxg5 {[%clk 0:01:08]} 28. Rf1
{[%clk 0:06:09]} 28... Bf7 {[%clk 0:00:44]} 29. h3 {[%clk 0:04:39]} 29... h4
{[%clk 0:00:39]} 30. hxg4 {[%clk 0:04:34]} 30... hxg3 {[%clk 0:01:06]} 31. Kg1
{[%clk 0:02:34]} 1/2-1/2

[Variant "Standard"]
[Site "Europe Echecs"]

[Event "Championnat du monde jeunes U12F"]
[Date "2024.11.26"]
[White "Jung, Minju"]
[Black "Chen, Pin-I"]
[WhiteElo "1457"]
[BlackElo "1601"]
[Round "11.42"]
[Result "0-1"]
[TimeControl "5400+30"]

1. e4 {[%clk 1:30:43]} 1... c6 {[%clk 1:30:55]} 2. d4 {[%clk 1:30:50]} 2... d5
{[%clk 1:31:21]} 3. exd5 {[%clk 1:30:52]} 3... cxd5 {[%clk 1:31:41]} 4. Bd3
{[%clk 1:30:47]} 4... Nc6 {[%clk 1:32:04]} 5. c3 {[%clk 1:28:57]} 5... Qc7
{[%clk 1:32:20]} 6. Be3 {[%clk 1:24:40]} 6... Nf6 {[%clk 1:32:01]} 7. Nd2 {[%clk
1:22:18]} 7... e6 {[%clk 1:30:22]} 8. Ngf3 {[%clk 1:20:36]} 8... Bd6 {[%clk
1:30:17]} 9. h3 {[%clk 1:15:39]} 9... Bd7 {[%clk 1:29:43]} 10. O-O {[%clk
1:14:57]} 10... O-O {[%clk 1:29:46]} 11. Qc2 {[%clk 1:10:02]} 11... Rac8 {[%clk
1:27:00]} 12. Qd1 {[%clk 1:04:12]} 12... h6 {[%clk 1:23:54]} 13. Re1 {[%clk
1:00:37]} 13... Na5 {[%clk 1:20:45]} 14. Ne5 {[%clk 0:50:32]} 14... b5 {[%clk
1:06:12]} 15. Rc1 {[%clk 0:45:30]} 15... Nc4 {[%clk 1:03:52]} 16. Bxc4 {[%clk
0:43:34]} 16... dxc4 {[%clk 0:59:25]} 17. Ndf3 {[%clk 0:41:26]} 17... Nd5 {[%clk
0:52:40]} 18. Qc2 {[%clk 0:36:06]} 18... Be8 {[%clk 0:46:06]} 19. Bd2 {[%clk
0:32:48]} 19... Qd8 {[%clk 0:29:54]} 20. Qe4 {[%clk 0:29:37]} 20... Qf6 {[%clk
0:18:23]} 21. Qg4 {[%clk 0:24:20]} 21... Ne7 {[%clk 0:06:29]} 22. Nh4 {[%clk
0:18:01]} 22... Nf5 {[%clk 0:05:19]} 23. Nxf5 {[%clk 0:16:39]} 23... exf5 {[%clk
0:05:21]} 24. Qf3 {[%clk 0:13:40]} 24... Bxe5 {[%clk 0:03:32]} 25. Rxe5 {[%clk
0:13:20]} 25... Bd7 {[%clk 0:03:17]} 26. Rce1 {[%clk 0:10:16]} 26... Rfe8 {[%clk
0:01:27]} 27. Rxe8+ {[%clk 0:10:15]} 27... Rxe8 {[%clk 0:01:25]} 28. Rxe8+
{[%clk 0:10:38]} 28... Bxe8 {[%clk 0:01:50]} 29. Qa8 {[%clk 0:10:30]} 29... Qe7
{[%clk 0:01:44]} 30. Kf1 {[%clk 0:09:11]} 30... Kh7 {[%clk 0:01:49]} 31. Be3
{[%clk 0:06:28]} 31... f6 {[%clk 0:01:20]} 32. d5 {[%clk 0:05:30]} 32... Qe4
{[%clk 0:00:45]} 33. Qd8 {[%clk 0:01:00]} 33... Qd3+ {[%clk 0:00:41]} 34. Ke1
{[%clk 0:01:15]} 34... Bh5 {[%clk 0:01:03]} 35. f3 {[%clk 0:00:48]} 35... Qxe3+
{[%clk 0:01:30]} 36. Kf1 {[%clk 0:01:09]} 36... Qd3+ {[%clk 0:01:42]} 37. Kg1
{[%clk 0:01:30]} 37... Qe3+ {[%clk 0:01:36]} 38. Kf1 {[%clk 0:01:13]} 38... Qc1+
{[%clk 0:01:59]} 39. Kf2 {[%clk 0:01:37]} 39... Qxb2+ {[%clk 0:02:20]} 40. Kg1
{[%clk 0:01:54]} 40... Qxc3 {[%clk 0:02:34]} 41. d6 {[%clk 0:01:39]} 41... Qd4+
{[%clk 0:02:52]} 42. Kh1 {[%clk 0:01:53]} 42... c3 {[%clk 0:03:03]} 43. d7
{[%clk 0:01:36]} 43... c2 {[%clk 0:03:25]} 44. Qc8 {[%clk 0:01:52]} 44... Qd1+
{[%clk 0:03:45]} 45. Kh2 {[%clk 0:02:17]} 45... c1=Q {[%clk 0:03:19]} 46. Qxc1
{[%clk 0:01:54]} 46... Qxd7 {[%clk 0:03:31]} 47. Qb1 {[%clk 0:02:15]} 47... Bf7
{[%clk 0:03:32]} 48. a3 {[%clk 0:02:18]} 48... a5 {[%clk 0:03:40]} 49. Kg3
{[%clk 0:02:24]} 49... Bc4 {[%clk 0:03:46]} 50. Kh2 {[%clk 0:02:23]} 50... Bd3
{[%clk 0:04:06]} 51. Qd1 {[%clk 0:02:26]} 51... Qd6+ {[%clk 0:04:28]} 52. Kh1
{[%clk 0:02:48]} 52... Qxa3 {[%clk 0:04:51]} 53. Qd2 {[%clk 0:02:57]} 53... b4
{[%clk 0:04:46]} 54. Kh2 {[%clk 0:03:17]} 54... Qc3 {[%clk 0:05:11]} 55. Qa2
{[%clk 0:03:37]} 55... b3 {[%clk 0:05:26]} 56. Qa3 {[%clk 0:03:54]} 56... Qe5+
{[%clk 0:05:42]} 57. Kh1 {[%clk 0:04:06]} 57... Bc2 {[%clk 0:05:54]} 58. Qc1
{[%clk 0:04:25]} 58... Qc3 {[%clk 0:06:05]} 59. Kh2 {[%clk 0:04:42]} 59... b2
{[%clk 0:06:28]} 60. Qf4 {[%clk 0:04:58]} 60... Qe5 {[%clk 0:06:42]} 61. Qxe5
{[%clk 0:04:25]} 61... fxe5 {[%clk 0:07:01]} 62. Kg3 {[%clk 0:04:49]} 62... b1=Q
{[%clk 0:07:23]} 63. h4 {[%clk 0:05:13]} 63... Qe1+ {[%clk 0:07:47]} 64. Kh3
{[%clk 0:05:32]} 64... f4 {[%clk 0:07:57]} 65. Kh2 {[%clk 0:05:49]} 65... Qg3+
{[%clk 0:08:09]} 66. Kg1 {[%clk 0:06:11]} 66... e4 {[%clk 0:07:46]} 67. fxe4
{[%clk 0:06:32]} 67... f3 {[%clk 0:08:10]} 68. Kf1 {[%clk 0:06:53]} 68... Qxg2+
{[%clk 0:08:36]} 69. Ke1 {[%clk 0:07:16]} 69... Qe2# {[%clk 0:09:03]} 0-1

[Variant "Standard"]
[Site "Europe Echecs"]